Cogmind - Beta 16 @@@ ROGUE MODE // 2025.11.11 @ 15:38:58 Player: Lazz Result: Destroyed by G-47 Trooper with Particle Gun Performance ------------- Evolutions (2) 1000 Regions Visited (4) 800 Robots Destroyed (46) 230 Value Destroyed (1120) 1120 Prototype IDs (4) 80 Alien Tech Used (0) 0 Bonus (0) 0 TOTAL SCORE: 3230 Bonus ------- None Cogmind --------- Core Integrity 0/550 Matter 1/300 Energy 100/100 System Corruption 0% Temperature Cool (9) Movement Core (350) Ox6 Location -8/Storage Parts ------- > --- POWER (1) -------- (None) > --- PROPULSION (2) --- Faulty Improved Flight Unit > --- UTILITY (5) ------ Large Storage Unit Signal Interpreter Terrain Scan Processor > --- WEAPON (3) ------- (None) > --- INVENTORY (15) --- Heavy Ion Engine Light Deuterium Engine Armored Wheel Improved Flight Unit Faulty Improved Flight Unit Faulty Improved Flight Unit Cesium-ion Thruster Large Storage Unit Signal Interpreter Peak State ------------ > --- POWER ------------ Cooled Ion Engine > --- PROPULSION ------- Light Treads Armored Treads > --- UTILITY ---------- Large Storage Unit Signal Interpreter Improved Terrain Scanner Terrain Scan Processor > --- WEAPON ----------- Improved EM Shotgun Heavy Assault Rifle Mini Grenade Launcher > --- INVENTORY -------- Heavy Ion Engine Light Deuterium Engine Armored Wheel Improved Flight Unit Improved Flight Unit Improved Flight Unit Improved Flight Unit Large Storage Unit Signal Interpreter [Rating: 23] Favorites ----------- Power Ion Engine Engine Ion Engine Propulsion Light Treads Treads Light Treads Leg Aluminum Leg Wheel Compact Wheel Flight Unit Improved Flight Unit Utility Large Storage Unit Device Improved Terrain Scanner Storage Large Storage Unit Processor Terrain Scan Processor Weapon Beam Rifle Energy Gun Beam Rifle Ballistic Gun Heavy Assault Rifle Launcher Mini Grenade Launcher Build | -11 -10 -9 -8 -8 ------- Run | Yrd Mat Mat Mat Sto Slots Evolved 4 | . . 2 2 . Power . | . . . . . Propulsion . | . . . . . Utility 3 | . . 1 2 . Weapon 1 | . . 1 . . Parts Attached 30 | 7 5 12 5 1 Power 5 | 1 1 3 . . Engine 5 | 1 1 3 . . Core . | . . . . . Reactor . | . . . . . Propulsion 10 | 2 1 4 2 1 Treads 4 | . . 2 2 . Leg 3 | 2 1 . . . Wheel 2 | . . 2 . . Hover . | . . . . . Flight 1 | . . . . 1 Utility 5 | 2 1 2 . . Device 1 | 1 . . . . Storage 2 | 1 1 . . . Processor 2 | . . 2 . . Hackware . | . . . . . Protection . | . . . . . Artifact . | . . . . . Weapon 10 | 2 2 3 3 . Energy Gun 4 | . 2 1 1 . Energy Cannon . | . . . . . Ballistic Gun 4 | 2 . 1 1 . Ballistic Cannon . | . . . . . Launcher 2 | . . 1 1 . Special Weapon . | . . . . . Impact Weapon . | . . . . . Slashing Weapon . | . . . . . Piercing Weapon . | . . . . . Special Melee Weapon . | . . . . . Unidentified Prototypes 4 | . . 2 1 1 Parts Lost 16 | . . 9 . 7 Power 2 | . . 1 . 1 Propulsion 5 | . . 3 . 2 Utility 1 | . . . . 1 Weapon 8 | . . 5 . 3 Highest Loss Streak 7 | . . 3 . 7 To Critical Strikes . | . . . . . Average Backups 5 | 3 6 4 6 7 Power 1 | . 1 . 1 2 Propulsion 1 | 1 2 . . 3 Utility 1 | . . 1 3 2 Weapon 1 | 1 2 2 1 . Tool/Special . | . . . . . Unused Backups 12 | . 2 4 . 6 Power 4 | . 1 2 . 1 Propulsion 5 | . . 2 . 3 Utility 2 | . . . . 2 Weapon 1 | . 1 . . . Tool/Special . | . . . . . Average Slot Usage (%) 84 | . 100 87 68 73 Engine 9 | . 14 9 9 7 Treads 10 | . . 11 14 15 Leg 4 | . 28 . . . Wheel 2 | . . 5 1 . Device 8 | . 14 10 . 7 Storage 10 | . 14 11 9 9 Processor 11 | . . 11 18 18 Energy Gun 15 | . 18 19 7 6 Ballistic Gun 4 | . 9 1 7 7 Launcher 4 | . . 7 . 2 Peak Build Rating 23 | 9 12 16 19 23 Average Rating 13 | 5 10 13 16 18 On Entrance 9 | . 9 12 10 17 Avg Prop Armor Cover (%) 7 | . . . 7 . Naked Turns . | . . . . . Heaviest Build 36 | 15 32 34 35 36 Greatest Support 40 | 20 20 40 40 40 Greatest Overweight (x) 8 | . 1 8 2 6 Average Overweight (x) . | . . . . . Largest Inventory Capacity 15 | 8 15 15 15 15 Average Capacity 13 | 7 9 15 15 15 Most Carried 10 | 5 8 9 9 10 Average Carried 5 | 3 6 4 7 7 Final Capacity 15 | 8 15 15 15 15 Final Carried 9 | 5 8 7 7 9 Class Distribution -------------------- 65% | Mutant 34% | Skirmisher Dominant Class ---------------- Mutant | -10/Materials Skirmisher | -9/Materials Mutant | -8/Materials Mutant | -8/Storage Resources | -11 -10 -9 -8 -8 ----------- Run | Yrd Mat Mat Mat Sto Matter Collected 680 | 306 . 114 188 72 Remotely . | . . . . . Salvage Created 1165 | 129 145 558 176 157 Parts 69 | 9 5 30 16 9 Haulers Intercepted 3 | . . 2 . 1 Recyclers Shooed 1 | . . 1 . . Parts Field Recycled . | . . . . . Retrieved Matter . | . . . . . Parts Self-Destructed . | . . . . . Prevented . | . . . . . Parts Restored . | . . . . . Kills | -11 -10 -9 -8 -8 ------- Run | Yrd Mat Mat Mat Sto Combat Hostiles Destroyed 26 | . 3 13 6 4 Guns 7 | . 2 1 3 1 AOE 18 | . . 12 3 3 Classes Destroyed 11 | 2 1 7 1 . Worker 2 | . . 2 . . Builder 3 | . . 1 . 2 Tunneler 3 | 3 . . . . Hauler 3 | . . 2 . 1 Recycler 4 | 1 . 3 . . Operator 2 | . . 1 1 . Watcher 3 | . . 3 . . Swarmer 7 | . . 4 3 . Grunt 14 | . 3 6 2 3 Sentry 4 | . . 3 . 1 Hunter 1 | . . . 1 . Best Kill Streak 6 | 2 1 6 4 3 Combat Bots Only 5 | . 1 5 3 3 Max Kills in Single Turn 3 | 1 1 3 3 2 Gunslinging . | . . . . . Exploded 3 | . . 3 2 2 Melee . | . . . . . Uniques/NPCs Destroyed . | . . . . . Combat | -11 -10 -9 -8 -8 -------- Run | Yrd Mat Mat Mat Sto Hostile Shots Fired 277 | . 43 91 39 104 Missed 101 | . 13 35 13 40 Hits 176 | . 30 56 26 64 Projectile 176 | . 30 56 26 64 Critical Strikes 3 | . . 1 . 2 Damage Taken 2840 | . 356 1097 401 986 Core 853 | . 104 191 76 482 Absorbed by Shields . | . . . . . Core Remaining (%) 70 | 100 58 52 . . Volleys Fired 83 | 6 18 30 8 21 Largest 3 | 2 2 3 2 3 Hottest 142 | 40 112 142 68 98 Shots Fired 177 | 12 34 78 14 39 Gun 135 | 12 34 53 13 23 Cannon . | . . . . . Launcher 42 | . . 25 1 16 Special . | . . . . . Kinetic 34 | 12 . 2 7 13 Thermal 85 | . 34 51 . . Explosive 42 | . . 25 1 16 Electromagnetic 16 | . . . 6 10 Robot Hit Streak 17 | 4 6 17 5 6 Robot Miss Streak 4 | 1 4 4 2 2 Penetration Max . | . . . . . Secondary Targets . | . . . . . Shots Hit Robots 116 | 9 16 57 12 22 Core Hits 81 | 5 5 42 11 18 Critical Kills . | . . . . . Critical Parts Destroyed . | . . . . . Critical Strikes 10 | . 2 8 . . Burn 10 | . 2 8 . . Melee Attacks . | . . . . . Impact . | . . . . . Slashing . | . . . . . Piercing . | . . . . . Sneak Attacks . | . . . . . Combat Hostiles . | . . . . . Follow-up Attacks . | . . . . . Damage Inflicted 4064 | 104 235 2336 428 961 Guns 1291 | 104 232 587 169 199 Cannons . | . . . . . Explosions 2752 | . . 1736 259 757 Melee . | . . . . . Ramming 21 | . 3 13 . 5 Kinetic 307 | 104 . 18 77 108 Thermal 801 | . 232 569 . . Explosive 2752 | . . 1736 259 757 Electromagnetic 183 | . . . 92 91 Impact . | . . . . . Slashing . | . . . . . Piercing . | . . . . . Highest Corruption 5 | . 1 5 . . Average Corruption 3 | . 1 5 . . Corruption Purged . | . . . . . Corruption Blocked . | . . . . . Effects 10 | . 2 8 . . Matter Fused 2 | . . 2 . . Heat Flow Errors 5 | . 2 3 . . Energy Discharges 1 | . . 1 . . Parts Fused 1 | . . 1 . . Alerts 1 | . . 1 . . Overload Shots . | . . . . . Overflow Damage 113 | . . 113 . . Projectiles . | . . . . . Explosions 113 | . . 113 . . Melee . | . . . . . Knockbacks . | . . . . . Impact . | . . . . . Kinetic . | . . . . . Secondary . | . . . . . Self-Inflicted Damage 555 | . . 411 125 19 Shots 16 | . . 11 3 2 Rammed 3 | . . 2 . 1 Targets Rammed 5 | . 1 2 . 2 Kicked 1 | . 1 . . . Crushed 1 | . . . . 1 Highest Temperature 484 | . 484 309 3 42 Average Temperature 135 | . 213 101 3 18 Received Heat Transfer 999 | . 195 246 45 513 Effects 7 | . 4 3 . . Shutdowns 3 | . 3 . . . Interference 4 | . 1 3 . . Siege Activations . | . . . . . Martial Activations . | . . . . . Shielding Activations . | . . . . . Robots Disrupted . | . . . . . Combat Hostiles . | . . . . . Robots Corrupted . | . . . . . Combat Hostiles . | . . . . . Parts Fried 1 | . . . 1 . Impact Corruptions . | . . . . . Robots Melted 1 | . 1 . . . Combat Hostiles 1 | . 1 . . . Parts Melted 4 | . 3 1 . . Heat Transferred 2812 | . 740 2072 . . Parts Sabotaged . | . . . . . Parts Stolen . | . . . . . Parts Stripped . | . . . . . Power Chain Reactions . | . . . . . Alert | -11 -10 -9 -8 -8 ------- Run | Yrd Mat Mat Mat Sto Maximum Alert Level 1 | . . 1 1 . Low Security (%) 93 | 100 100 92 71 100 Level 1 6 | . . 7 28 . Level 2 . | . . . . . Level 3 . | . . . . . Level 4 . | . . . . . Level 5 . | . . . . . High Security . | . . . . . Max Security . | . . . . . Peak Influence 245 | 10 74 245 241 155 Initial 92 | . . 14 80 92 Average 88 | 1 32 106 159 67 Influence Increases 1277 | 20 134 667 241 215 Destroy 0b10 Robot/C 520 | . 60 260 120 80 Destroy 0b10 Robot/NC 100 | 20 . 60 5 15 Destroy Leader 142 | . 20 80 30 12 Successful Hack 45 | . 8 21 11 5 Disable Machine 150 | . 15 75 30 30 Destroy Structure 290 | . 1 171 45 73 Lose Combat Pursuer 30 | . 30 . . . Influence Decreases 1190 | 20 100 510 211 349 Entered New Map 260 | . . 20 111 129 Time Decay 620 | 20 100 250 100 150 Lost Part 160 | . . 90 . 70 Purge Threat 150 | . . 150 . . Squads Dispatched 12 | . 2 3 4 3 Investigation 5 | . 2 . 2 1 Extermination . | . . . . . Reinforcement 7 | . . 3 2 2 Assault . | . . . . . Garrison . | . . . . . Intercept . | . . . . . Searches Triggered . | . . . . . Construction Impeded 3 | . . 2 . 1 Haulers Reinforced . | . . . . . Active Scanning Responses . | . . . . . Cargo Convoy Interrupts . | . . . . . Stealth | -11 -10 -9 -8 -8 --------- Run | Yrd Mat Mat Mat Sto Distress Signals 3 | . 1 2 . . Communications Jammed . | . . . . . Distress Signals . | . . . . . Times Spotted 55 | . 8 24 11 12 Peak Tracking Total 8 | . 3 8 4 7 Tactical Retreats 1 | . 1 . . . Traps | -11 -10 -9 -8 -8 ------- Run | Yrd Mat Mat Mat Sto Traps Triggered 1 | . 1 . . . Indirectly . | . . . . . Trap Hack Attempts . | . . . . . Triggered . | . . . . . Disarmed . | . . . . . Reprogrammed . | . . . . . Reused . | . . . . . Traps Extracted . | . . . . . Installed . | . . . . . Triggered . | . . . . . Machines | -11 -10 -9 -8 -8 ---------- Run | Yrd Mat Mat Mat Sto Machines Disabled 10 | . 1 5 2 2 Max in Single Turn 2 | . 1 2 1 1 Machines Repaired . | . . . . . Machines Dismantled . | . . . . . Machines Sabotaged . | . . . . . Overloaded Fab Kills . | . . . . . Hacking | -11 -10 -9 -8 -8 --------- Run | Yrd Mat Mat Mat Sto Machines Accessed 11 | . 3 3 2 3 Terminals 10 | . 3 3 2 2 Fabricators . | . . . . . Repair Stations . | . . . . . Recycling Units 1 | . . . . 1 Scanalyzers . | . . . . . Garrison Access . | . . . . . Total Hacks 34 | . 7 10 8 9 Successful 12 | . 1 6 3 2 Failed 22 | . 6 4 5 7 Catastrophic 6 | . 2 1 2 1 Database Lockouts . | . . . . . Manual 14 | . . 8 3 3 Terminals 32 | . 7 10 8 7 Fabricators . | . . . . . Repair Stations . | . . . . . Recycling Units 2 | . . . . 2 Scanalyzers . | . . . . . Garrison Access . | . . . . . Terminal Hacks 8 | . 1 4 2 1 Record 1 | . . . . 1 Robot Analysis 1 | . . . 1 . Level Access Points 1 | . 1 . . . Terminal Index 2 | . . 1 1 . Unreport Threat 1 | . . 1 . . Zone Layout 2 | . . 2 . . Fabricator Hacks . | . . . . . Repair Station Hacks . | . . . . . Recycling Unit Hacks . | . . . . . Scanalyzer . | . . . . . Garrison Access Hacks . | . . . . . Unauthorized Hacks 4 | . . 2 1 1 Terminals 4 | . . 2 1 1 Botnet 4 | . . 2 1 1 Fabricators . | . . . . . Repair Stations . | . . . . . Recycling Units . | . . . . . Scanalyzers . | . . . . . Garrison Access . | . . . . . Data Cores Recovered 1 | . . 1 . . Used . | . . . . . Hacking Detections 10 | . 3 2 2 3 Full Trace Events 5 | . 2 . 2 1 Feedback Events 1 | . 1 . . . Corruption 1 | . 1 . . . Feedback Blocked . | . . . . . Robot Schematics Acquired . | . . . . . Robots Built . | . . . . . Authchips . | . . . . . Time . | . . . . . Total Robot Build Rating . | . . . . . Part Schematics Acquired . | . . . . . Parts Built . | . . . . . Authchips . | . . . . . Time . | . . . . . Total Part Build Rating . | . . . . . Part Studies Acquired . | . . . . . Parts Repaired . | . . . . . Time . | . . . . . Parts Recycled . | . . . . . Recycled Matter . | . . . . . Retrieved Matter . | . . . . . Retrieved Components . | . . . . . Parts Scanalyzed . | . . . . . Part Schematics Acquired . | . . . . . Parts Damaged . | . . . . . Bothacking | -11 -10 -9 -8 -8 ------------ Run | Yrd Mat Mat Mat Sto Used RIF Installer . | . . . . . Robots Hacked . | . . . . . Non-combat . | . . . . . Combat . | . . . . . Robot Hacks Applied . | . . . . . Relay Couplers Released . | . . . . . Fabnet Peak Effective % . | . . . . . Robots Rewired . | . . . . . Allies Hacked . | . . . . . Hacks Repelled . | . . . . . Allies | -11 -10 -9 -8 -8 -------- Run | Yrd Mat Mat Mat Sto Total Allies . | . . . . . Largest Group . | . . . . . Highest-Rated Group . | . . . . . Highest-Rated Ally . | . . . . . Total Orders . | . . . . . Ally Attacks . | . . . . . Total Damage . | . . . . . Kills . | . . . . . Allies Corrupted . | . . . . . Allies Melted . | . . . . . Intel | -11 -10 -9 -8 -8 ------- Run | Yrd Mat Mat Mat Sto Active Infowar (turns) 1381 | 18 288 816 . 259 Terrain 1381 | 18 288 816 . 259 Robot Analysis Total 1 | . . . 1 . Derelict Logs Recovered . | . . . . . Drone Launches . | . . . . . Drone Recoveries . | . . . . . Exploration | -11 -10 -9 -8 -8 ------------- Run | Yrd Mat Mat Mat Sto Turns Passed 1815 | 97 288 902 219 309 Spaces Moved 778 | 60 169 309 113 127 Core 27 | 16 . 1 . 10 Treads 342 | . . 124 101 117 Legs 213 | 44 169 . . . Wheels 196 | . . 184 12 . Hover . | . . . . . Flight . | . . . . . Fastest Speed 50 | 50 120 95 120 165 Average Speed 148 | 101 130 148 165 180 Slowest Speed 450 | 120 190 450 240 350 Overloaded Moves . | . . . . . Propulsion Burnouts . | . . . . . Robots Hopped . | . . . . . Potential Cave-ins 1 | . . . . 1 Cave-ins Triggered . | . . . . . Exploration Rate (%) 25 | 5 39 40 19 23 Regions Visited 4 Branch Regions 1 Pre-discovered Areas . | . . . . . Known Exits Taken 3 | . 1 1 1 . Unknown Exits Taken 1 | 1 . . . . Scrap Searched . | . . . . . Spaces Dug 8 | . . . . 8 Terrain Destroyed 382 | . . 201 63 118 Melee . | . . . . . Projectile . | . . . . . AOE 382 | . . 201 63 118 Terrain Rammed . | . . . . . Walls Destroyed . | . . . . . Machines Disabled . | . . . . . Actions | -11 -10 -9 -8 -8 --------- Run | Yrd Mat Mat Mat Sto Total 1281 | 83 205 691 131 171 Wait 331 | . . 318 2 11 Move 774 | 59 168 308 112 127 Hop . | . . . . . Pick Up 38 | 11 6 13 3 5 Fast Attach 3 | 1 2 . . . Attach 25 | 6 1 10 4 4 Detach 2 | . . . 1 1 Swap 6 | . 2 3 1 . Drop 14 | . 7 7 . . Fire 83 | 6 18 30 8 21 Melee . | . . . . . Ram 2 | . . 2 . . Kick 1 | . 1 . . . Crush 2 | . . . . 2 Escape Stasis . | . . . . . Rewire . | . . . . . Trap . | . . . . . Miscellaneous . | . . . . . Route ------- -11/Scrapyard -10/Materials (discovered 3 exits: *Mat x3) -9/Materials -8/Materials (discovered 2 exits: *Fac / *Sto) -8/Storage History --------- Turn | Location | Event 11 | -11/Scrapyard | Discovered new exit (range 15) 98 | -11/Scrapyard | Entered Materials 287 | -10/Materials | Identified exit to Materials 305 | -10/Materials | Build established: Mutant 386 | -10/Materials | Entered another Materials area 386 | -9/Materials | Evolved 2 slots: Utility x1, Weapon x1 678 | -9/Materials | Build established: Skirmisher 972 | -9/Materials | Lost 3 parts (1p1n1w) 1173 | -9/Materials | Discovered new exit (range 5) 1203 | -9/Materials | Identified exit to Materials 1288 | -9/Materials | Entered another Materials area 1288 | -8/Materials | Evolved 2 slots: Utility x2 1316 | -8/Materials | Lost 3 parts (1n2w) 1457 | -8/Materials | Discovered new exit (range 11) 1468 | -8/Materials | Build established: Mutant 1469 | -8/Materials | Discovered new exit (range 15) 1474 | -8/Materials | Identified exit to Storage 1492 | -8/Materials | Identified exit to Factory 1507 | -8/Materials | Entered Storage 1786 | -8/Storage | Core integrity fell below 50% 1807 | -8/Storage | Core integrity fell below 20% 1810 | -8/Storage | Lost 7 parts (1p2n1u3w) 1816 | -8/Storage | Destroyed by G-47 Trooper with Particle Gun Last Messages --------------- 01761_ Transfer Shaft disabled. 01762_ Terminal disabled. 01763_ The unstable cave ceiling collapses. 01764_ Cld. Ion Engine destroyed. 01764_ Destroyed Cld. Ion Engine. 01766_ Imp. Terrain Scanner destroyed. 01766_ Arm. Treads destroyed. 01771_ Lgt. Treads destroyed. 01773_ The unstable cave ceiling collapses. 01779_ Mni. Grenade Launcher destroyed. 01781_ The unstable cave ceiling collapses. 01800_ Acquired Cesium-ion Thruster. 01801_ The unstable cave ceiling collapses. 01801_ Identified Imp. Flight Unit. 01801_ Faulty integration damages Lrg. Storage Unit (-48). 01804_ The unstable cave ceiling collapses. 01808_ Critical hit (Burn: +37). 01809_ U-05 Engineer destroyed. 01810_ K-01 Serf destroyed. Map ----- +----------------------------------------------------+ | ????????????????????????????????????? | | ????????????????????????????????????? | | ????????????????????????????????????? | | ????????????????????????????????????? | | ????????????????????????????????????? | | ????????????????????????????????????? | | ????????????????????????????????????? | | ????????????????????????????????????? | | ????????????????????????????????????? | | ????????????????????????????????????? | | ?????????????????????????#? ? ?? ???? | | ????????????????? ??? ????? ???? ??? | | ????????????????? ??????#??? ??? ??? | | ????????????? ??? ??????#?? +??? | | ???????????????#? ?????#?? ?#??? ??? | | ?????????????????#+##+#?##????????? ? | | ????????????????? #??##?##?# ? ? | | ?????#??#?#??????# #???# ##??? ?? | | ?????# ?????#??#?# ####? ###???#?? | | ????## #########?# ? ??#?###?#?# | | ???#? #k% #?# ######?####?##? | | ???#?? /g !### #??#?#?#?##???? | | ????? ??#g #?# ########?#??##? | | ????#???# ! #?# #####??###?#### | | #????#??# !!%|### ############### | | ????## ?# @! ### = = | | ????# #####g## ! ############## | | ????# T ## % # #?#####?#?### | | ????# ## % #?######?#??# | | #?######## ### ############??# | | ??# = # ##### ##?## | | ??# ### ##?#? | | # " #### #### | | # ##############? | | # ! * " ##?#? | | # ## #######! ######? | | ## # # ?# # #?#### #?#### | | ?## ##### #####?#?## ######? | | #?# ###?########?#?#######?###? | | | | | | | | | | | | | | | | | | | | | | | +----------------------------------------------------+ Best States ------------- Heat Dissipation 31 Energy Generation 14 Energy Capacity 280 Matter Stores 300 Matter Capacity 300 Sight Range 16 Terrain Scan Range 16 Terrain Scan Density 85 Evasion (%) 55 Recoil Reduction 2 Item Schematics ----------------- None Robot Schematics ------------------ None Fabricated ------------ Nothing Repaired ---------- Nothing Studied --------- None Alien Tech Used ----------------- None Achievements -------------- None Challenges ------------ None Game ------ Seed BehemothProjectionBasin Manual? 0 Play Time 00:20:20 Cumulative 62.6 hours Start 2025.11.11 @ 15:21:36 End 2025.11.11 @ 15:38:58 Sessions 1 Manual Loads 0 Difficulty Rogue Special Mode None Game No. 83 Rogue 83 Adventurer 0 Explorer 0 Win Type - Total 1 Types 1/0/0/0/0/0/0/0/0/0 Lore% 36 Gallery% 43 Achievement% 31 Wizard Run 0 Options --------- Layout 2 ASCII 0 Keyboard 0 Movement Mouse Keybinds 0 Fullscreen 1 Font 16/SmallcapsGlow Map View 25x22 Zoom Use 100% Tactical HUD 1 Map Filters NONE Filters NONE Steam SD RUN: bf884d41-75be-4fa8-86d4-3c75dc1008ee